fUSD/lending_fUSD_20250204
["ID","MTS","AMOUNT","RATE_DAILY","PERIOD"]
[351613281,1738663848660,-1184.04,8.799e-05,2]
[351613282,1738663848670,-1699.54,8.799e-05,2]
[351613283,1738663848680,-1602.29,8.799e-05,2]
[351613284,1738663848690,-1772.22,8.799e-05,2]
[351613285,1738663848699,-1504.02,8.799e-05,2]
[351613286,1738663848709,-500.0,8.799e-05,2]
[351613287,1738663848719,-1160.44,8.799e-05,2]
[351613288,1738663848729,-1318.87,8.799e-05,2]
[351613289,1738663848739,-160704.08372518,8.8e-05,2]
[351613290,1738663848751,-1398.36676979,8.8e-05,2]
[351613291,1738663848809,-5867.95864613,8.8e-05,2]
[351613292,1738663848819,-253.84135387,8.8e-05,2]
[351613293,1738663848844,-257.09482402,8.8e-05,2]
[351613294,1738663848883,-489.06382211,8.8e-05,2]
[351613295,1738663848893,-600.0,8.8e-05,3]
[351613296,1738663848903,-150.0,8.8e-05,2]
[351613297,1738663848912,-150.0,8.8e-05,2]
[351613298,1738663848922,-3911.0,8.872e-05,2]
[351613299,1738663848932,-1005.0,8.872e-05,2]
[351613300,1738663848942,-150.0,8.872e-05,2]
[351613301,1738663848952,-1108.0,8.872e-05,2]
[351613302,1738663848962,-1272.0,8.89e-05,2]
[351613303,1738663848972,-2023.0,8.89e-05,2]
[351613304,1738663848982,-638.0,8.89e-05,2]
[351613305,1738663848992,-568.0,8.89e-05,2]
[351613306,1738663849002,-1826.0,8.89e-05,2]
[351613307,1738663849012,-1264.0,8.89e-05,2]
[351613308,1738663849023,-907.0,8.89e-05,2]
[351613309,1738663849035,-2953.0,8.89e-05,2]
[351613310,1738663849045,-783.0,8.89e-05,2]
[351613311,1738663849055,-1324.0,8.89e-05,2]
[351613312,1738663849065,-1000.0,8.9e-05,2]
[351613313,1738663849074,-900.0,8.9e-05,3]
[351613314,1738663849084,-564.18,8.902e-05,2]
[351613315,1738663849093,-818.97,8.902e-05,2]
[351613316,1738663849103,-500.0,8.902e-05,2]
[351613317,1738663849113,-718.39,8.902e-05,2]
[351613318,1738663849123,-868.08,8.902e-05,2]
[351613319,1738663849133,-500.0,8.902e-05,2]
[351613320,1738663849143,-582.27,8.902e-05,2]
[351613321,1738663849152,-888.89,8.902e-05,2]
[351613322,1738663849162,-500.0,8.903e-05,2]
[351613323,1738663849427,-500.0,8.903e-05,2]
[351613324,1738663849438,-913.28,8.903e-05,2]
[351613325,1738663849449,-500.0,8.903e-05,2]
[351613326,1738663849459,-500.0,8.903e-05,2]
[351613327,1738663849471,-500.0,8.903e-05,2]
[351613328,1738663849482,-500.0,8.903e-05,2]
[351613329,1738663849493,-500.0,8.903e-05,2]
[351613330,1738663849504,-500.0,8.903e-05,2]
[351613331,1738663849516,-500.0,8.903e-05,2]
[351613332,1738663849527,-500.0,8.903e-05,2]
[351613333,1738663849545,-649.9,8.903e-05,2]
[351613334,1738663849555,-348.65380874,8.903e-05,2]
[351613335,1738663849566,-713.33,8.903e-05,2]
[351613336,1738663849577,-500.0,8.903e-05,2]
[351613337,1738663849588,-500.0,8.903e-05,2]
[351613338,1738663849600,-500.0,8.903e-05,2]
[351613339,1738663849612,-500.0,8.903e-05,2]
[351613340,1738663849623,-1084.01,8.903e-05,2]
[351613341,1738663849635,-500.0,8.903e-05,2]
[351613342,1738663849646,-500.0,8.903e-05,2]
[351613343,1738663849657,-500.0,8.903e-05,2]
[351613344,1738663849668,-500.0,8.903e-05,2]
[351613345,1738663849680,-500.0,8.903e-05,2]
[351613346,1738663849691,-500.0,8.903e-05,2]
[351613347,1738663849701,-522.73,8.903e-05,2]
[351613348,1738663849712,-500.0,8.903e-05,2]
[351613349,1738663849723,-500.0,8.903e-05,2]
[351613350,1738663849733,-500.0,8.903e-05,2]
[351613351,1738663849744,-500.0,8.903e-05,2]
[351613352,1738663849754,-500.0,8.903e-05,2]
[351613353,1738663849765,-500.0,8.903e-05,2]
[351613354,1738663849776,-500.0,8.903e-05,2]
[351613355,1738663849791,-500.0,8.903e-05,2]
[351613356,1738663849802,-500.0,8.903e-05,2]
[351613357,1738663849812,-500.0,8.903e-05,2]
[351613358,1738663849822,-804.31,8.903e-05,2]
[351613359,1738663849833,-500.0,8.903e-05,2]
[351613360,1738663849843,-500.0,8.903e-05,2]
[351613361,1738663849853,-725.4,8.903e-05,2]
[351613362,1738663849863,-500.0,8.903e-05,2]
[351613363,1738663849873,-500.0,8.903e-05,2]
[351613364,1738663849883,-541.66,8.903e-05,2]
[351613365,1738663849893,-500.0,8.903e-05,2]
[351613366,1738663849903,-698.85,8.903e-05,2]
[351613367,1738663849913,-500.0,8.903e-05,2]
[351613368,1738663849923,-500.0,8.903e-05,2]
[351613369,1738663849934,-811.06,8.903e-05,2]
[351613370,1738663849945,-500.0,8.903e-05,2]
[351613371,1738663849955,-695.0,8.903e-05,2]
[351613372,1738663849964,-263.30621072,8.903e-05,2]
[351613373,1738663849974,-581.95,8.903e-05,2]
[351613374,1738663849985,-687.09,8.903e-05,2]
[351613375,1738663849997,-895.62,8.903e-05,2]
[351613376,1738663850008,-500.0,8.903e-05,2]
[351613377,1738663850019,-500.0,8.903e-05,2]
[351613378,1738663850031,-500.0,8.903e-05,2]
[351613379,1738663850045,-500.0,8.903e-05,2]
[351613380,1738663850055,-1276.71,8.903e-05,2]
[351613381,1738663850064,-500.0,8.903e-05,2]
[351613382,1738663850075,-501.95,8.903e-05,2]
[351613383,1738663850086,-500.0,8.903e-05,2]
[351613384,1738663850095,-500.0,8.903e-05,2]
[351613385,1738663850104,-530.33,8.903e-05,2]
[351613386,1738663850114,-500.0,8.903e-05,2]
[351613387,1738663850124,-500.0,8.903e-05,2]
[351613388,1738663850133,-500.0,8.903e-05,2]
[351613389,1738663850143,-500.0,8.903e-05,2]
[351613390,1738663850153,-557.57,8.903e-05,2]
[351613391,1738663850163,-500.0,8.903e-05,2]
[351613392,1738663850172,-500.0,8.903e-05,2]
[351613393,1738663850181,-747.45104323,8.903e-05,2]
[351613394,1738663934043,-10000.0,0.00012,18]
[351613395,1738663935511,-10000.0,0.00012,18]
[351613396,1738663936520,-10000.0,0.00012,18]
[351613397,1738664008257,1034.75883346,0.00019,120]
[351613398,1738664403177,158.0,0.00012,30]
[351613400,1738664704365,158.33836822,0.00012,30]
[351613403,1738664714633,691.65673417,0.000121,30]
[351613404,1738664841052,522.94,7.95e-05,2]
[351613405,1738664853121,-676.25,8.219e-05,2]
[351613406,1738664853144,-1000.0,8.219e-05,2]
[351613407,1738664853172,-1743.49,8.219e-05,2]
[351613408,1738664853196,-814.887844,8.61e-05,2]
[351613409,1738664853218,-1000.0,8.7e-05,2]
[351613410,1738664853240,-1608.9599027,8.724e-05,2]
[351613411,1738664853263,-150.0,8.765e-05,2]
[351613412,1738664853285,-428.43512631,8.766e-05,2]
[351613414,1738664902583,21338.49955566,0.00012,30]
[351613450,1738665038428,-804.4799514,8.724e-05,2]
[351613451,1738665038439,-150.0,8.765e-05,2]
[351613452,1738665038449,-500.0,8.766e-05,2]
[351613453,1738665038458,-500.0,8.766e-05,2]
[351613454,1738665038468,-500.0,8.766e-05,2]
[351613455,1738665038477,-500.0,8.766e-05,2]
[351613456,1738665038487,-500.0,8.766e-05,2]
[351613457,1738665038497,-500.0,8.766e-05,2]
[351613458,1738665038506,-500.0,8.766e-05,2]
[351613459,1738665038516,-500.0,8.766e-05,2]
[351613460,1738665038526,-562.93,8.766e-05,2]
[351613461,1738665038535,-500.0,8.766e-05,2]
[351613462,1738665038545,-500.0,8.766e-05,2]
[351613463,1738665038554,-500.0,8.766e-05,2]
[351613464,1738665038564,-537.57,8.766e-05,2]
[351613465,1738665038574,-500.0,8.766e-05,2]
[351613466,1738665038584,-500.0,8.766e-05,2]
[351613467,1738665038593,-500.0,8.766e-05,2]
[351613468,1738665038602,-500.0,8.766e-05,2]
[351613469,1738665038617,-500.0,8.766e-05,2]
[351613470,1738665038627,-500.0,8.766e-05,2]
[351613471,1738665038636,-500.0,8.766e-05,2]
[351613472,1738665038649,-597.2,8.766e-05,2]
[351613473,1738665038658,-209.28562947,8.766e-05,2]
[351613474,1738665038668,-500.0,8.766e-05,2]
[351613475,1738665038677,-500.0,8.766e-05,2]
[351613476,1738665038688,-523.94,8.766e-05,2]
[351613477,1738665038697,-177.71398915,8.766e-05,2]
[351613478,1738665038708,-500.0,8.767e-05,2]
[351613479,1738665038720,-896.54,8.789e-05,2]
[351613480,1738665038730,-810.16,8.789e-05,2]
[351613481,1738665038739,-500.0,8.789e-05,2]
[351613482,1738665038748,-747.04,8.789e-05,2]
[351613483,1738665038757,-500.0,8.789e-05,2]
[351613484,1738665038766,-530.01,8.789e-05,2]
[351613485,1738665038776,-664.95,8.789e-05,2]
[351613486,1738665038785,-500.0,8.789e-05,2]
[351613487,1738665038794,-640.62,8.789e-05,2]
[351613488,1738665038803,-540.67,8.789e-05,2]
[351613489,1738665038813,-500.0,8.789e-05,2]
[351613490,1738665038822,-820.99,8.789e-05,2]
[351613491,1738665038831,-1170.31,8.789e-05,2]
[351613492,1738665038839,-500.0,8.789e-05,2]
[351613493,1738665038848,-784.84,8.789e-05,2]
[351613494,1738665038862,-500.0,8.789e-05,2]
[351613495,1738665038871,-10.00042999,8.789e-05,2]
[351613496,1738665039295,-744.26957001,8.789e-05,2]
[351613497,1738665039304,-500.0,8.789e-05,2]
[351613498,1738665039314,-1025.25,8.789e-05,2]
[351613499,1738665039323,-688.46,8.789e-05,2]
[351613500,1738665039333,-500.0,8.789e-05,2]
[351613501,1738665039343,-831.91,8.789e-05,2]
[351613502,1738665039352,-500.0,8.789e-05,2]
[351613503,1738665039365,-920.97,8.789e-05,2]
[351613504,1738665039375,-581.87,8.789e-05,2]
[351613505,1738665039384,-161.06124711,8.789e-05,2]
[351613506,1738665039396,-338.93875289,8.789e-05,2]
[351613507,1738665039406,-631.15,8.789e-05,2]
[351613508,1738665039416,-226.64776585,8.789e-05,2]
[351613511,1738665040376,-273.35223415,8.789e-05,2]
[351613512,1738665040386,-220.52276585,8.789e-05,2]
[351613513,1738665040398,-337.48723415,8.789e-05,2]
[351613514,1738665040408,-208.79276585,8.789e-05,2]
[351613515,1738665040542,-458.76723415,8.789e-05,2]
[351613516,1738665040552,-1217.87,8.789e-05,2]
[351613517,1738665040562,-697.11,8.789e-05,2]
[351613518,1738665040571,-500.0,8.789e-05,2]
[351613519,1738665040582,-500.0,8.789e-05,2]
[351613520,1738665040591,-746.04,8.789e-05,2]
[351613521,1738665040600,-549.29,8.789e-05,2]
[351613522,1738665040612,-500.0,8.789e-05,2]
[351613523,1738665040622,-500.0,8.789e-05,2]
[351613524,1738665040632,-500.0,8.789e-05,2]
[351613525,1738665040643,-500.0,8.789e-05,2]
[351613526,1738665040657,-500.0,8.789e-05,2]
[351613527,1738665040667,-672.9,8.789e-05,2]
[351613528,1738665040677,-500.0,8.789e-05,2]
[351613529,1738665040687,-707.79,8.789e-05,2]
[351613530,1738665040697,-536.34569049,8.789e-05,2]
[351613539,1738665043359,-462.04430951,8.789e-05,2]
[351613540,1738665043374,-914.85,8.789e-05,2]
[351613541,1738665043385,-500.0,8.789e-05,2]
[351613542,1738665043395,-500.0,8.789e-05,2]
[351613543,1738665043405,-184.79071621,8.789e-05,2]
[351613544,1738665043653,-315.20928379,8.789e-05,2]
[351613545,1738665043664,-578.19,8.789e-05,2]
[351613546,1738665043675,-500.0,8.789e-05,2]
[351613547,1738665043687,-630.84,8.789e-05,2]
[351613548,1738665043696,-564.36,8.789e-05,2]
[351613549,1738665043705,-1064.45,8.789e-05,2]
[351613550,1738665043715,-808.06,8.789e-05,2]
[351613551,1738665043725,-500.0,8.789e-05,2]
[351613552,1738665043735,-1070.02,8.789e-05,2]
[351613553,1738665043745,-1624.5,8.789e-05,2]
[351613554,1738665043754,-500.0,8.789e-05,2]
[351613555,1738665043763,-693.27,8.789e-05,2]
[351613556,1738665043772,-534.9,8.789e-05,2]
[351613557,1738665043781,-734.84,8.789e-05,2]
[351613558,1738665043789,-500.0,8.789e-05,2]
[351613559,1738665043798,-537.1,8.789e-05,2]
[351613560,1738665043807,-667.36,8.789e-05,2]
[351613561,1738665043816,-1156.48,8.789e-05,2]
[351613563,1738665043825,-830.81,8.789e-05,2]
[351613565,1738665043834,-614.73,8.789e-05,2]
[351613567,1738665043844,-500.0,8.79e-05,2]
[351613569,1738665043853,-500.0,8.79e-05,2]
[351613571,1738665043863,-743.48,8.79e-05,2]
[351613573,1738665043872,-500.0,8.79e-05,2]
[351613575,1738665043882,-500.0,8.79e-05,2]
[351613577,1738665043891,-500.0,8.79e-05,2]
[351613579,1738665043900,-500.0,8.79e-05,2]
[351613581,1738665043909,-500.0,8.79e-05,2]
[351613583,1738665043919,-624.43300077,8.79e-05,2]
[351613585,1738665043928,-500.0,8.79e-05,2]
[351613587,1738665043937,-500.0,8.79e-05,2]
[351613589,1738665043947,-500.0,8.79e-05,2]
[351613591,1738665043956,-685.63,8.79e-05,2]
[351613593,1738665043966,-500.0,8.79e-05,2]
[351613595,1738665043975,-578.01,8.79e-05,2]
[351613597,1738665043984,-686.37,8.79e-05,2]
[351613599,1738665043993,-500.0,8.79e-05,2]
[351613601,1738665044003,-707.51,8.79e-05,2]
[351613603,1738665044011,-1077.5,8.79e-05,2]
[351613605,1738665044020,-500.0,8.79e-05,2]
[351613607,1738665044029,-1111.21,8.79e-05,2]
[351613609,1738665044038,-756.01,8.79e-05,2]
[351613611,1738665044048,-1039.64,8.79e-05,2]
[351613613,1738665044057,-500.0,8.79e-05,2]
[351613615,1738665044067,-719.21,8.79e-05,2]
[351613617,1738665044076,-667.09,8.79e-05,2]
[351613619,1738665044085,-778.76,8.79e-05,2]
[351613621,1738665044095,-500.0,8.79e-05,2]
[351613623,1738665044104,-500.0,8.79e-05,2]
[351613625,1738665044116,-500.0,8.79e-05,2]
[351613627,1738665044126,-676.96,8.79e-05,2]
[351613629,1738665044135,-974.55,8.79e-05,2]
[351613631,1738665044145,-500.0,8.79e-05,2]
[351613633,1738665044156,-500.0,8.79e-05,2]
[351613635,1738665044165,-693.12,8.79e-05,2]
[351613637,1738665044175,-500.0,8.79e-05,2]
[351613639,1738665044184,-55908.56130174,8.798e-05,2]
[351613641,1738665044193,-500.0,8.826e-05,2]
[351613643,1738665044203,-1153.32,8.826e-05,2]
[351613645,1738665044212,-500.0,8.826e-05,2]
[351613647,1738665044221,-730.46,8.826e-05,2]
[351613649,1738665044231,-736.7,8.826e-05,2]
[351613651,1738665044240,-658.33,8.826e-05,2]
[351613653,1738665044250,-841.67,8.826e-05,2]
[351613655,1738665044259,-3549.85,8.826e-05,2]
[351613657,1738665044268,-1325.52,8.826e-05,2]
[351613659,1738665044277,-875.36,8.826e-05,2]
[351613661,1738665044287,-1190.1,8.826e-05,2]
[351613663,1738665044296,-1612.54,8.826e-05,2]
[351613665,1738665044305,-959.1,8.826e-05,2]
[351613667,1738665044314,-6853.9445,8.827e-05,2]
[351613669,1738665044323,-201.0,8.899e-05,2]
[351613671,1738665044333,-999.18,8.899e-05,2]
[351613673,1738665044343,-681.544318,8.899e-05,2]
[351613675,1738665044352,-902.44,8.899e-05,2]
[351613677,1738665044365,-500.0,8.899e-05,2]
[351613679,1738665044374,-1073.48,8.899e-05,2]
[351613681,1738665044383,-500.0,8.899e-05,2]
[351613683,1738665044392,-550.0,8.899e-05,2]
[351613685,1738665044402,-700.166493,8.899e-05,2]
[351613687,1738665044411,-753.82,8.899e-05,2]
[351613689,1738665044423,-1305.41,8.899e-05,2]
[351613691,1738665044432,-630.44,8.899e-05,2]
[351613693,1738665044442,-882.0,8.899e-05,2]
[351613695,1738665044453,-936.04,8.899e-05,2]
[351613697,1738665044463,-2099.2,8.899e-05,2]
[351613699,1738665044473,-1045.72,8.899e-05,2]
[351613702,1738665044483,-847.13,8.899e-05,2]
[351613704,1738665044492,-952.61,8.899e-05,2]
[351613706,1738665044501,-664.16,8.899e-05,2]
[351613707,1738665044511,-2259.84,8.899e-05,2]
[351613709,1738665044520,-1260.22,8.899e-05,2]
[351613712,1738665044530,-2237.57,8.899e-05,2]
[351613714,1738665044539,-1982.03,8.899e-05,2]
[351613716,1738665044549,-662.52,8.899e-05,2]
[351613717,1738665044559,-818.76,8.899e-05,2]
[351613720,1738665044568,-1169.94,8.899e-05,2]
[351613721,1738665044578,-1423.43,8.899e-05,2]
[351613723,1738665044586,-922.52,8.899e-05,2]
[351613725,1738665044595,-2791.2,8.899e-05,2]
[351613727,1738665044604,-1556.27,8.899e-05,2]
[351613729,1738665044615,-500.0,8.899e-05,2]
[351613732,1738665044625,-1514.82,8.899e-05,2]
[351613734,1738665044640,-1484.12,8.899e-05,2]
[351613736,1738665044650,-1202.39,8.899e-05,2]
[351613738,1738665044659,-500.0,8.899e-05,2]
[351613740,1738665044668,-1058.0,8.899e-05,2]
[351613742,1738665044677,-1088.55,8.899e-05,2]
[351613744,1738665044686,-1110.98,8.899e-05,2]
[351613746,1738665044695,-500.0,8.899e-05,2]
[351613748,1738665044703,-500.0,8.899e-05,2]
[351613750,1738665044712,-500.0,8.899e-05,2]
[351613752,1738665044722,-1255.83,8.899e-05,2]
[351613753,1738665044731,-500.0,8.899e-05,2]
[351613755,1738665044740,-500.0,8.899e-05,2]
[351613757,1738665044749,-763.58,8.899e-05,2]
[351613759,1738665044758,-851.35,8.899e-05,2]
[351613761,1738665044767,-1013.59,8.899e-05,2]
[351613763,1738665044776,-601.54,8.899e-05,2]
[351613765,1738665044785,-500.0,8.899e-05,2]
[351613767,1738665044794,-500.0,8.899e-05,2]
[351613769,1738665044803,-712.29,8.899e-05,2]
[351613771,1738665044811,-612.53,8.899e-05,2]
[351613773,1738665044820,-515.96,8.899e-05,2]
[351613775,1738665044829,-878.34,8.899e-05,2]
[351613777,1738665044837,-500.0,8.899e-05,2]
[351613779,1738665044846,-750.78,8.899e-05,2]
[351613781,1738665044856,-500.0,8.899e-05,2]
[351613783,1738665044865,-267.85241981,8.899e-05,2]
[351613785,1738665044879,-875.78,8.899e-05,2]
[351613787,1738665044889,-795.5,8.899e-05,2]
[351613789,1738665044899,-500.0,8.899e-05,2]
[351613791,1738665044908,-1281.38,8.899e-05,2]
[351613793,1738665044918,-500.0,8.899e-05,2]
[351613795,1738665044927,-500.0,8.899e-05,2]
[351613797,1738665044937,-500.0,8.899e-05,2]
[351613799,1738665044946,-500.0,8.9e-05,2]
[351613801,1738665044956,-500.0,8.9e-05,2]
[351613803,1738665044965,-500.0,8.9e-05,2]
[351613805,1738665044976,-500.0,8.9e-05,2]
[351613807,1738665044986,-500.0,8.9e-05,2]
[351613809,1738665044996,-500.0,8.9e-05,2]
[351613811,1738665045005,-500.0,8.9e-05,2]
[351613813,1738665045015,-500.24221608,8.9e-05,2]
[351613815,1738665045024,-500.0,8.9e-05,2]
[351613817,1738665045034,-508.81254527,8.9e-05,2]
[351613819,1738665045043,-426.69040579,8.9e-05,2]
[351613821,1738665045052,-500.0,8.9e-05,2]
[351613823,1738665045061,-500.0,8.9e-05,2]
[351613825,1738665045071,-500.0,8.9e-05,2]
[351613827,1738665045080,-500.0,8.9e-05,2]
[351613829,1738665045090,-500.0,8.9e-05,2]
[351613831,1738665045100,-500.0,8.9e-05,2]
[351613833,1738665045109,-615.33,8.9e-05,2]
[351613835,1738665045121,-500.0,8.9e-05,2]
[351613837,1738665045131,-500.62,8.9e-05,2]
[351613839,1738665045141,-503.08075164,8.9e-05,2]
[351613841,1738665045151,-500.0,8.9e-05,2]
[351613843,1738665045161,-500.0,8.9e-05,2]
[351613845,1738665045171,-500.0,8.9e-05,2]
[351613847,1738665045181,-500.0,8.9e-05,2]
[351613849,1738665045191,-500.0,8.9e-05,2]
[351613851,1738665045200,-500.0,8.9e-05,2]
[351613853,1738665045210,-500.0,8.9e-05,2]
[351613855,1738665045219,-500.97176166,8.9e-05,2]
[351613857,1738665045229,-500.0,8.9e-05,2]
[351613859,1738665045238,-500.0,8.9e-05,2]
[351613861,1738665045248,-761.39,8.9e-05,2]
[351613863,1738665045257,-500.0,8.9e-05,2]
[351613866,1738665045267,-500.0,8.9e-05,2]
[351613868,1738665045276,-500.0,8.9e-05,2]
[351613870,1738665045285,-501.07876847,8.9e-05,2]
[351613871,1738665045294,-500.0,8.9e-05,2]
[351613873,1738665045304,-500.0,8.9e-05,2]
[351613875,1738665045313,-756.29,8.9e-05,2]
[351613877,1738665045323,-500.0,8.9e-05,2]
[351613879,1738665045332,-500.0,8.9e-05,2]
[351613881,1738665045341,-500.0,8.9e-05,2]
[351613883,1738665045351,-500.0,8.9e-05,2]
[351613885,1738665045360,-500.0,8.9e-05,2]
[351613887,1738665045371,-788.54,8.9e-05,2]
[351613889,1738665045380,-500.36761521,8.9e-05,2]
[351613892,1738665045390,-500.0,8.9e-05,2]
[351613894,1738665045400,-500.0,8.9e-05,2]
[351613896,1738665045409,-500.0,8.9e-05,2]
[351613898,1738665045419,-772.54,8.9e-05,2]
[351613900,1738665045428,-500.0,8.9e-05,2]
[351613902,1738665045437,-500.18809698,8.9e-05,2]
[351613904,1738665045447,-500.0,8.9e-05,2]
[351613906,1738665045456,-507.08139571,8.9e-05,2]
[351613908,1738665045465,-500.0,8.9e-05,2]
[351613909,1738665045474,-500.0,8.9e-05,2]
[351613911,1738665045483,-500.0,8.9e-05,2]
[351613914,1738665045494,-517.21,8.9e-05,2]
[351613916,1738665045504,-500.0,8.9e-05,2]
[351613918,1738665045513,-500.0,8.9e-05,2]
[351613920,1738665045523,-500.0,8.9e-05,2]
[351613922,1738665045533,-610.53046241,8.9e-05,2]
[351613924,1738665045542,-500.0,8.9e-05,2]
[351613926,1738665045552,-500.0,8.9e-05,2]
[351613928,1738665045562,-534.12,8.9e-05,2]
[351613930,1738665045571,-500.0,8.9e-05,2]
[351613932,1738665045580,-500.0,8.9e-05,2]
[351613934,1738665045589,-687.96,8.9e-05,2]
[351613936,1738665045599,-500.0,8.9e-05,2]
[351613938,1738665045608,-585.52,8.9e-05,2]
[351613940,1738665045618,-500.0,8.9e-05,2]
[351613941,1738665045627,-500.0,8.9e-05,2]
[351613944,1738665045642,-571.7,8.9e-05,2]
[351613945,1738665045654,-500.0,8.9e-05,2]
[351613948,1738665045664,-500.0,8.9e-05,2]
[351613950,1738665045674,-500.0,8.9e-05,2]
[351613952,1738665045684,-500.0,8.9e-05,2]
[351613954,1738665045694,-500.0,8.9e-05,2]
[351613956,1738665045704,-500.0,8.9e-05,2]
[351613958,1738665045713,-721.45,8.9e-05,2]
[351613959,1738665045723,-500.0,8.9e-05,2]
[351613962,1738665045732,-500.0,8.9e-05,2]
[351613963,1738665045742,-500.0,8.9e-05,2]
[351613966,1738665045752,-500.0,8.9e-05,2]
[351613967,1738665045761,-667.01,8.9e-05,2]
[351613969,1738665045770,-394.54,8.9e-05,2]
[351613971,1738665045780,-500.0,8.9e-05,2]
[351613974,1738665045791,-500.0,8.9e-05,2]
[351613976,1738665045801,-500.0,8.9e-05,2]
[351613978,1738665045812,-562.51,8.9e-05,2]
[351613980,1738665045822,-500.0,8.9e-05,2]
[351613982,1738665045832,-633.18,8.9e-05,2]
[351613984,1738665045842,-500.0,8.9e-05,2]
[351613986,1738665045851,-516.83,8.9e-05,2]
[351613988,1738665045861,-543.45,8.9e-05,2]
[351613990,1738665045873,-670.68,8.9e-05,2]
[351613992,1738665045883,-500.0,8.9e-05,2]
[351613994,1738665045893,-500.0,8.9e-05,2]
[351613996,1738665045902,-500.0,8.9e-05,2]
[351613998,1738665045912,-764.78,8.9e-05,2]
[351614000,1738665045922,-500.0,8.9e-05,2]
[351614002,1738665045931,-875.05,8.9e-05,2]
[351614004,1738665045942,-900.4,8.9e-05,2]
[351614006,1738665045953,-500.0,8.9e-05,2]
[351614008,1738665045963,-500.0,8.9e-05,2]
[351614010,1738665045974,-944.14,8.9e-05,2]
[351614012,1738665045983,-943.28,8.9e-05,2]
[351614014,1738665045992,-500.0,8.9e-05,2]
[351614016,1738665046001,-500.0,8.9e-05,2]
[351614018,1738665046010,-553.95,8.9e-05,2]
[351614020,1738665046019,-585.72,8.9e-05,2]
[351614022,1738665046028,-1000.0,8.9e-05,2]
[351614024,1738665046038,-500.0,8.9e-05,2]
[351614026,1738665046047,-801.42,8.9e-05,2]
[351614028,1738665046057,-500.0,8.9e-05,2]
[351614030,1738665046067,-639.27,8.9e-05,2]
[351614032,1738665046076,-500.0,8.9e-05,2]
[351614035,1738665046086,-1600.37,8.9e-05,2]
[351614037,1738665046096,-500.0,8.9e-05,2]
[351614039,1738665046106,-500.0,8.9e-05,2]
[351614041,1738665046117,-1188.77,8.9e-05,2]
[351614043,1738665046126,-1745.34,8.9e-05,2]
[351614045,1738665046136,-825.44,8.9e-05,2]
[351614047,1738665046145,-1043.66,8.9e-05,2]
[351614049,1738665046156,-776.66,8.9e-05,2]
[351614051,1738665046166,-500.0,8.9e-05,2]
[351614053,1738665046176,-1184.65,8.9e-05,2]
[351614055,1738665046186,-524.64,8.9e-05,2]
[351614057,1738665046196,-1583.25,8.9e-05,2]
[351614059,1738665046205,-641.6,8.9e-05,2]
[351614061,1738665046215,-2058.13,8.9e-05,2]
[351614063,1738665046225,-500.0,8.9e-05,2]
[351614065,1738665046234,-958.21,8.9e-05,2]
[351614067,1738665046243,-500.0,8.9e-05,2]
[351614069,1738665046253,-904.12,8.9e-05,2]
[351614071,1738665046263,-2256.4,8.9e-05,2]
[351614073,1738665046272,-500.0,8.9e-05,2]
[351614075,1738665046282,-500.0,8.9e-05,2]
[351614077,1738665046291,-1119.6,8.9e-05,2]
[351614079,1738665046301,-724.67,8.9e-05,2]
[351614081,1738665046310,-774.77,8.9e-05,2]
[351614083,1738665046319,-500.0,8.9e-05,2]
[351614085,1738665046328,-1322.53,8.9e-05,2]
[351614087,1738665046337,-1036.16,8.9e-05,2]
[351614089,1738665046347,-676.87,8.9e-05,2]
[351614091,1738665046356,-674.64,8.9e-05,2]
[351614093,1738665046368,-500.0,8.9e-05,2]
[351614095,1738665046378,-583.6,8.9e-05,2]
[351614097,1738665046388,-796.0,8.9e-05,2]
[351614099,1738665046397,-820.41,8.9e-05,2]